bitfinex/quotes_BTCUSD_20251019
["timestamp","ask_amount","ask_price","bid_price","bid_amount"]
[1760892150817,0.02667211,108930.0,108920.0,0.93803186]
[1760892150984,0.02667211,108930.0,108920.0,1.69145175]
[1760892151181,0.02667211,108930.0,108920.0,1.68145176]
[1760892151401,0.01586063,108940.0,108930.0,0.83360413]
[1760892151600,0.1300569,108950.0,108940.0,0.18358729]
[1760892151835,0.1300569,108950.0,108940.0,0.27799817]
[1760892152164,0.1300569,108950.0,108940.0,1.05141804]
[1760892152371,0.02746538,108950.0,108940.0,1.45026614]
[1760892152583,0.07759936,108960.0,108950.0,0.94063042]
[1760892152785,0.05000784,108960.0,108950.0,2.23907332]
[1760892152990,0.02241632,108960.0,108950.0,1.24214742]
[1760892153205,0.02241632,108960.0,108950.0,0.09441088]
[1760892153410,0.02241632,108960.0,108950.0,0.97867076]
[1760892153721,0.02241632,108960.0,108950.0,0.85783076]
[1760892153911,0.20596991,108960.0,108950.0,0.21721088]
[1760892154117,0.20596991,108960.0,108950.0,0.21921088]
[1760892154413,0.20596991,108960.0,108950.0,0.21721088]
[1760892154616,0.20596991,108960.0,108950.0,0.09641088]
[1760892154838,0.20596991,108960.0,108950.0,0.09441088]
[1760892155013,0.20596991,108960.0,108950.0,0.09541088]
[1760892155210,0.20596991,108960.0,108950.0,0.09641088]
[1760892155453,0.20596991,108960.0,108950.0,0.27998132]
[1760892155454,0.02241632,108960.0,108950.0,0.27998132]
[1760892155634,0.02241632,108960.0,108950.0,0.09641088]
[1760892156066,0.02695981,108960.0,108950.0,0.27998132]
[1760892156299,0.02695981,108960.0,108950.0,0.27898132]
[1760892156508,0.02695981,108960.0,108950.0,1.0414012]
[1760892156719,0.10253342,108980.0,108970.0,0.48353675]
[1760892156945,0.10302512,108980.0,108970.0,1.98046404]
[1760892157158,0.10302512,108980.0,108970.0,1.68046404]
[1760892157346,0.10302512,108980.0,108970.0,1.98046404]
[1760892157544,0.10462396,108980.0,108970.0,1.98046404]
[1760892157776,0.10302512,108980.0,108970.0,1.98146404]
[1760892157978,0.10302512,108980.0,108970.0,1.98246404]
[1760892158218,0.10302512,108980.0,108970.0,1.98146404]
[1760892158391,10.13468864,109000.0,108970.0,1.98146404]
[1760892158392,10.13430525,109000.0,108990.0,0.18350307]
[1760892158599,10.13445266,109000.0,108990.0,0.39927395]
[1760892158778,10.13445266,109000.0,108990.0,0.21577088]
[1760892158979,10.31793889,109000.0,108990.0,0.21577088]
[1760892159181,10.13445266,109000.0,108990.0,0.21569088]
[1760892159641,10.31793889,109000.0,108990.0,0.21569088]
[1760892160149,10.31793889,109000.0,108990.0,0.21669088]
[1760892160325,10.31793889,109000.0,108990.0,0.21569088]
[1760892160527,10.31793889,109000.0,108990.0,0.09441088]
[1760892160700,10.31793889,109000.0,108990.0,0.09541088]
[1760892163097,10.31683889,109000.0,108990.0,0.09541088]
[1760892163509,10.31823555,109000.0,108990.0,0.09541088]
[1760892163926,10.31823555,109000.0,108990.0,0.09441088]
[1760892164550,10.43923555,109000.0,108990.0,0.09441088]
[1760892165323,10.43919555,109000.0,108990.0,0.09441088]
[1760892165541,10.44075436,109000.0,108990.0,0.09441088]
[1760892166165,10.31983436,109000.0,108990.0,0.09441088]
[1760892166368,10.44079436,109000.0,108990.0,0.09441088]
[1760892167580,11.20261543,109000.0,108990.0,0.09441088]
[1760892168108,10.43919555,109000.0,108990.0,0.09441088]
[1760892169058,10.43907555,109000.0,108990.0,0.09441088]
[1760892170065,10.45346445,109000.0,108990.0,0.09441088]
[1760892170817,11.21688433,109000.0,108990.0,0.09441088]
[1760892171240,0.18354337,108970.0,108940.0,1.4650079]
[1760892171507,0.18353675,108970.0,108960.0,0.09441088]
[1760892171860,0.18388601,108970.0,108960.0,0.09441088]
[1760892172397,0.30425816,108980.0,108960.0,0.09441088]
[1760892172627,0.18353675,108970.0,108960.0,0.09441088]
[1760892172830,0.18353675,108970.0,108960.0,0.09541088]
[1760892173206,0.18353675,108970.0,108960.0,0.09641088]
[1760892174986,0.18353675,108970.0,108960.0,0.09441088]
[1760892175190,0.19792756,108970.0,108960.0,0.09441088]
[1760892175382,0.19792756,108970.0,108960.0,0.09541088]
[1760892175586,0.18353675,108970.0,108960.0,0.09541088]
[1760892176265,0.18353675,108970.0,108960.0,0.09441088]
[1760892176446,0.18353675,108970.0,108960.0,0.09541088]
[1760892176650,0.18353675,108970.0,108960.0,0.09441088]
[1760892176857,0.13353675,108970.0,108960.0,0.09441088]
[1760892177059,0.14115432,108970.0,108960.0,0.09541088]
[1760892177598,0.14275324,108970.0,108960.0,0.09541088]
[1760892177726,0.90617312,108970.0,108960.0,0.09541088]
[1760892177929,0.13353675,108970.0,108960.0,0.09541088]
[1760892178241,0.9045742,108970.0,108960.0,0.09541088]
[1760892178465,0.89695663,108970.0,108960.0,0.09541088]
[1760892178670,0.89695663,108970.0,108960.0,0.001]
[1760892179380,0.90553121,108970.0,108960.0,0.001]
[1760892179731,1.24553121,108970.0,108960.0,0.001]
[1760892179948,0.18357044,108950.0,108940.0,0.00108484]
[1760892180188,0.30405044,108950.0,108940.0,0.00108484]
[1760892180552,0.30405044,108950.0,108940.0,0.09549572]
[1760892181202,0.15710711,108970.0,108940.0,1.04299459]
[1760892181404,0.14271358,108970.0,108950.0,0.20006048]
[1760892181606,0.19271415,108980.0,108950.0,0.27798062]
[1760892181811,0.12048,108970.0,108950.0,0.27798062]
[1760892182156,0.30401859,108970.0,108950.0,0.09441088]
[1760892182371,0.19271415,108980.0,108960.0,0.18354826]
[1760892182582,0.5,108990.0,108970.0,0.11175387]
[1760892182778,0.12048,108980.0,108970.0,0.11175387]
[1760892182980,0.30399991,108980.0,108970.0,0.11175387]
[1760892183187,0.30434912,108980.0,108970.0,0.11175387]
[1760892185518,0.30434912,108980.0,108970.0,0.11275387]
[1760892185717,0.18386912,108980.0,108970.0,0.11275387]
[1760892185942,0.30422912,108980.0,108970.0,0.11275387]
[1760892186728,0.33514037,108990.0,108980.0,0.18351991]
[1760892186951,0.33514037,108990.0,108980.0,0.89154471]
[1760892187209,0.33514037,108990.0,108980.0,0.09441088]
[1760892187412,0.33514037,108990.0,108980.0,0.21485088]
[1760892187592,0.33514037,108990.0,108980.0,0.39837079]
[1760892187768,0.33514037,108990.0,108980.0,0.27793079]
[1760892187970,0.33528776,108990.0,108980.0,0.21485088]
[1760892188141,0.33528776,108990.0,108980.0,0.21585088]
[1760892188341,0.33528776,108990.0,108980.0,0.21685088]
[1760892189257,0.51879083,108990.0,108980.0,0.09641088]
[1760892189800,0.33528776,108990.0,108980.0,0.09641088]
[1760892190193,0.33528776,108990.0,108980.0,0.27993079]
[1760892190876,0.33528776,108990.0,108980.0,0.40025079]
[1760892191753,0.33528776,108990.0,108980.0,1.40124125]
[1760892191933,0.33528776,108990.0,108980.0,0.78766733]
[1760892192178,0.33528776,108990.0,108980.0,0.90794733]
[1760892192591,0.33528776,108990.0,108980.0,1.40120125]
[1760892194212,0.33528776,108990.0,108980.0,1.28092125]
[1760892194415,0.33528776,108990.0,108980.0,1.40040125]
[1760892194872,0.15632855,108990.0,108980.0,1.40040125]
[1760892195206,0.15792708,108990.0,108980.0,1.40140125]
[1760892195487,0.15632855,108990.0,108980.0,1.40140125]
[1760892195902,0.15632855,108990.0,108980.0,1.70140125]
[1760892197576,0.15667772,108990.0,108980.0,1.70140125]
[1760892198147,0.15667772,108990.0,108980.0,1.40128125]
[1760892198354,0.15667772,108990.0,108980.0,1.28092125]
[1760892198553,0.15667772,108990.0,108980.0,1.40128125]
[1760892198934,0.15667772,108990.0,108980.0,1.70128125]
[1760892199348,0.15667772,108990.0,108980.0,1.58092125]
[1760892199556,0.15667772,108990.0,108980.0,1.70128125]
[1760892201462,0.15667772,108990.0,108980.0,1.58092125]
[1760892201684,0.15667772,108990.0,108980.0,1.70120125]
[1760892202303,0.15827608,108990.0,108980.0,1.70120125]
[1760892204957,0.15827608,108990.0,108980.0,1.76628878]
[1760892205159,0.15827608,108990.0,108980.0,1.76624878]
[1760892205372,0.15827608,108990.0,108980.0,1.40104125]
[1760892205728,0.15827608,108990.0,108980.0,1.61414878]
[1760892206131,0.15827608,108990.0,108980.0,1.46624878]
[1760892206357,0.15827608,108990.0,108980.0,1.40104125]
[1760892207379,0.15667772,108990.0,108980.0,0.90778733]
[1760892207581,0.15667772,108990.0,108980.0,0.77318471]
[1760892207850,0.15667772,108990.0,108980.0,0.27993079]
[1760892208084,0.15667772,108990.0,108980.0,0.39993079]
[1760892208305,0.15667772,108990.0,108980.0,0.77318471]
[1760892208523,0.15667772,108990.0,108980.0,0.89318471]
[1760892210077,0.15667772,108990.0,108980.0,0.39993079]
[1760892210308,0.15667772,108990.0,108980.0,0.89318471]
[1760892210729,10.09571459,109000.0,108990.0,0.18350307]
[1760892210945,10.09571459,109000.0,108990.0,0.27791395]
[1760892211214,10.11010183,109000.0,108990.0,0.27791395]
[1760892211415,10.11170022,109000.0,108990.0,0.27791395]
[1760892211633,10.11170022,109000.0,108990.0,0.39783395]
[1760892212063,10.11170022,109000.0,108990.0,0.21433088]
[1760892212285,10.11170022,109000.0,108990.0,0.39783395]
[1760892212510,10.29518645,109000.0,108990.0,0.21433088]
[1760892212724,10.29518645,109000.0,108990.0,0.09441088]
[1760892212935,10.29518645,109000.0,108990.0,0.09541088]
[1760892213384,10.29518645,109000.0,108990.0,0.09641088]
[1760892213887,10.11170022,109000.0,108990.0,0.09641088]
[1760892214120,10.29518645,109000.0,108990.0,0.09641088]
[1760892214556,10.29358806,109000.0,108990.0,0.09641088]
[1760892215950,10.29358806,109000.0,108990.0,0.09541088]
[1760892216535,10.29393717,109000.0,108990.0,0.09441088]
[1760892216774,10.41369717,109000.0,108990.0,0.09541088]
[1760892217609,10.4152957,109000.0,108990.0,0.09541088]
[1760892217751,10.41369717,109000.0,108990.0,0.09541088]
[1760892218370,10.90695109,109000.0,108990.0,0.09541088]
[1760892218906,10.41369717,109000.0,108990.0,0.09541088]
[1760892219119,10.90695109,109000.0,108990.0,0.09541088]
[1760892219317,10.90695109,109000.0,108990.0,0.09441088]
[1760892219837,0.18351991,108980.0,108970.0,0.00108445]
[1760892220035,0.8039914,108980.0,108970.0,0.09564272]
[1760892220236,0.79637383,108980.0,108970.0,0.09564272]
[1760892220414,0.67677383,108980.0,108970.0,0.09564272]
[1760892220616,0.79637383,108980.0,108970.0,0.09564272]
[1760892220954,0.79637383,108980.0,108970.0,0.09664272]
[1760892221253,0.67677383,108980.0,108970.0,0.00223184]
[1760892221475,0.79637383,108980.0,108970.0,0.00223184]
[1760892221694,0.80131582,108980.0,108970.0,0.00223184]
[1760892221906,4.14131582,108980.0,108970.0,0.00223184]
[1760892222132,4.02171582,108980.0,108970.0,0.00123184]
[1760892222283,4.14131582,108980.0,108970.0,0.00123184]
[1760892222485,4.02171582,108980.0,108970.0,0.00123184]
[1760892222684,4.14985405,108980.0,108970.0,0.00123184]
[1760892222883,4.03029405,108980.0,108970.0,0.00123184]
[1760892223145,4.14985405,108980.0,108970.0,0.00123184]
[1760892223474,4.14227582,108980.0,108970.0,0.00123184]
[1760892223931,4.14984815,108980.0,108970.0,0.00123184]
[1760892224115,4.16424134,108980.0,108970.0,0.00123184]
[1760892224343,4.15666901,108980.0,108970.0,0.00123184]
[1760892224886,0.1836085,108930.0,108910.0,0.18363523]
[1760892225256,0.1836085,108930.0,108920.0,0.09441088]
[1760892225386,0.1836085,108930.0,108920.0,0.11277298]
[1760892225785,0.3031305,108950.0,108930.0,0.18360256]
[1760892226029,0.3031305,108950.0,108940.0,0.09441088]
[1760892226228,0.3031305,108950.0,108940.0,0.09545895]
[1760892226571,0.1835705,108950.0,108940.0,0.09545895]
[1760892226735,0.80400199,108950.0,108940.0,0.09545895]
[1760892226939,0.79638442,108950.0,108940.0,0.09545895]
[1760892227139,0.3031305,108950.0,108940.0,0.09545895]
[1760892227348,0.79638442,108950.0,108940.0,0.09545895]
[1760892227497,0.79638442,108950.0,108940.0,0.00204807]
[1760892228666,0.81077951,108950.0,108940.0,0.00204807]
[1760892228950,0.81081951,108950.0,108940.0,0.00204807]
[1760892231554,0.19273659,108960.0,108940.0,0.28004361]
[1760892231772,0.31066801,108950.0,108940.0,0.09541088]
[1760892232077,0.30305044,108950.0,108940.0,0.1137696]
[1760892232851,0.30305044,108950.0,108940.0,0.09541088]
[1760892235420,0.30305044,108950.0,108940.0,0.001]
[1760892235627,0.79630436,108950.0,108940.0,0.001]
[1760892237268,4.16663199,108950.0,108940.0,0.001]
[1760892237632,4.16663199,108950.0,108940.0,0.00204807]
[1760892237812,4.18102808,108950.0,108940.0,0.00204807]
[1760892238621,4.18102808,108950.0,108940.0,0.00104807]
[1760892238821,4.27543896,108950.0,108940.0,1e-08]
[1760892239037,4.30304434,108950.0,108940.0,1e-08]
[1760892239468,4.31304433,108950.0,108940.0,1e-08]
[1760892240256,4.41745074,108950.0,108940.0,1e-08]
[1760892240454,4.42216432,108950.0,108940.0,1e-08]
[1760892240868,4.42220432,108950.0,108940.0,1e-08]
[1760892241222,4.42240432,108950.0,108940.0,1e-08]
[1760892241434,4.41440433,108950.0,108940.0,1e-08]
[1760892241800,4.26101682,108950.0,108940.0,1e-08]
[1760892242033,4.47981682,108950.0,108940.0,1e-08]
[1760892242237,4.47985682,108950.0,108940.0,1e-08]
[1760892242442,3.9866029,108950.0,108940.0,1e-08]
[1760892242644,4.47985682,108950.0,108940.0,1e-08]
[1760892242847,4.29628638,108950.0,108940.0,1e-08]
[1760892243058,4.47985682,108950.0,108940.0,1e-08]
[1760892243475,4.42444432,108950.0,108940.0,1e-08]
[1760892243628,4.17531669,108950.0,108940.0,1e-08]
[1760892243836,4.29479669,108950.0,108940.0,1e-08]
[1760892244429,3.80154277,108950.0,108940.0,1e-08]
[1760892244651,4.29479669,108950.0,108940.0,1e-08]
[1760892244848,4.55577808,108950.0,108940.0,1e-08]
[1760892245203,4.43629808,108950.0,108940.0,1e-08]
[1760892245326,4.42629809,108950.0,108940.0,1e-08]
[1760892245530,3.32206279,108950.0,108940.0,1e-08]
[1760892245767,3.39954132,108950.0,108940.0,1e-08]
[1760892245981,4.04429662,108950.0,108940.0,1e-08]
[1760892246426,4.50377662,108950.0,108940.0,1e-08]
[1760892247289,4.50177662,108950.0,108940.0,1e-08]
[1760892247496,3.73754132,108950.0,108940.0,1e-08]
[1760892247687,4.50377662,108950.0,108940.0,1e-08]
[1760892247980,4.38429662,108950.0,108940.0,1e-08]
[1760892248182,4.50177662,108950.0,108940.0,1e-08]
[1760892248713,4.50277662,108950.0,108940.0,1e-08]
[1760892248972,4.38329662,108950.0,108940.0,1e-08]
[1760892249134,4.50269662,108950.0,108940.0,1e-08]
[1760892249511,4.38329662,108950.0,108940.0,1e-08]
[1760892249712,4.50265662,108950.0,108940.0,1e-08]
[1760892251136,3.94888574,108950.0,108940.0,1e-08]
[1760892251341,4.06820574,108950.0,108940.0,1e-08]
[1760892251565,4.40820574,108950.0,108940.0,1e-08]
[1760892251791,4.06820574,108950.0,108940.0,1e-08]
[1760892251990,4.40720574,108950.0,108940.0,1e-08]
[1760892252207,4.40820574,108950.0,108940.0,1e-08]
[1760892252421,4.40920574,108950.0,108940.0,1e-08]
[1760892254327,4.28988574,108950.0,108940.0,1e-08]
[1760892254529,4.40908574,108950.0,108940.0,1e-08]
[1760892257523,3.52565044,108950.0,108940.0,1e-08]
[1760892257679,4.40896574,108950.0,108940.0,1e-08]
[1760892258987,4.40892574,108950.0,108940.0,1e-08]
[1760892260030,1.40892574,108950.0,108940.0,1e-08]
[1760892260248,0.64469044,108950.0,108940.0,1e-08]
[1760892260438,1.40892574,108950.0,108940.0,1e-08]
[1760892262495,1.41052524,108950.0,108940.0,1e-08]
[1760892262720,0.52724994,108950.0,108940.0,1e-08]
[1760892262922,0.64616994,108950.0,108940.0,1e-08]
[1760892263669,0.64612994,108950.0,108940.0,1e-08]
[1760892263871,0.00208,108950.0,108940.0,1e-08]
[1760892264136,0.12861757,108950.0,108940.0,1e-08]
[1760892264674,0.12761757,108950.0,108940.0,1e-08]
[1760892264859,0.12661757,108950.0,108940.0,1e-08]
[1760892267575,0.12661757,108950.0,108940.0,0.14790001]
[1760892268429,0.119,108950.0,108940.0,0.24231089]
[1760892269024,0.12661757,108950.0,108940.0,0.24231089]
[1760892269874,0.119,108950.0,108940.0,0.24231089]
[1760892270082,8e-05,108950.0,108940.0,0.24231089]
[1760892271456,0.00769757,108950.0,108940.0,0.24231089]
[1760892272494,0.00929688,108950.0,108940.0,0.24231089]
[1760892272709,8e-05,108950.0,108940.0,0.42589818]
[1760892274185,8e-05,108950.0,108940.0,0.54453818]
[1760892275515,0.34,108980.0,108940.0,0.49369818]
[1760892275720,10.06922568,109000.0,108980.0,0.1935199]
[1760892275936,9.72512729,109000.0,108990.0,1.52929938]
[1760892276134,9.27287065,109000.0,108990.0,1.81202924]
[1760892276323,9.06102738,109000.0,108990.0,1.89194502]
[1760892276530,8.79195009,109000.0,108990.0,1.9614612]
[1760892276783,8.40520214,109000.0,108990.0,1.97721532]
[1760892276920,8.18321789,109000.0,108990.0,2.07427532]
[1760892277121,7.72468172,109000.0,108990.0,2.13072208]
[1760892277327,7.39619732,109000.0,108990.0,2.13072208]
[1760892277528,5.14377693,109000.0,108990.0,5.93247355]
[1760892277737,4.97247086,109000.0,108990.0,5.83259353]
[1760892277919,4.97247086,109000.0,108990.0,5.81133622]
[1760892277920,4.66968046,109000.0,108990.0,5.81133622]
[1760892278126,4.47312615,109000.0,108990.0,5.36927]
[1760892278359,3.62173303,109000.0,108990.0,5.27221]
[1760892278563,3.51118232,109000.0,108990.0,5.40988976]
[1760892278765,3.2484483,109000.0,108990.0,5.53012974]
[1760892278960,3.12635298,109000.0,108990.0,5.0019778]
[1760892279300,2.58803659,109000.0,108990.0,5.33545394]
[1760892279454,1.69178284,109000.0,108990.0,6.17560284]
[1760892279814,1.1913781,109000.0,108990.0,5.94631142]
[1760892280020,1.11094863,109000.0,108990.0,6.19173661]
[1760892280237,0.46652069,109000.0,108990.0,6.28114749]
[1760892280454,0.07833616,109030.0,109020.0,0.55345254]
[1760892280654,0.04837611,109030.0,109020.0,2.04023526]
[1760892280878,0.09547434,109060.0,109040.0,1.1434189]
[1760892281082,0.02181057,109120.0,109090.0,1.1042353]
[1760892281300,0.2055882,109120.0,109080.0,1.27197184]
[1760892281519,0.3091633,109120.0,109080.0,1.31900618]
[1760892281753,0.00453561,109090.0,109080.0,1.19864618]
[1760892281973,0.00453561,109090.0,109080.0,0.73812254]
[1760892282248,0.00453561,109090.0,109080.0,0.55477088]
[1760892282477,0.00453561,109090.0,109080.0,0.73812254]
[1760892282937,0.00453561,109090.0,109080.0,0.73908254]
[1760892283591,0.00453561,109090.0,109080.0,0.74477872]
[1760892284267,0.00453561,109090.0,109080.0,1.50901402]
[1760892284919,0.00453561,109090.0,109080.0,1.38869402]
[1760892285136,0.00457561,109090.0,109080.0,0.74473872]
[1760892285586,0.00457561,109090.0,109080.0,1.51797401]
[1760892285793,0.00457561,109090.0,109080.0,0.75473871]
[1760892286016,0.00457561,109090.0,109080.0,0.74469872]
[1760892286225,0.00457561,109090.0,109080.0,0.62445872]
[1760892286381,0.00457561,109090.0,109080.0,0.63345871]
[1760892286582,0.00457561,109090.0,109080.0,0.63445871]
[1760892286784,0.00457561,109090.0,109080.0,0.75465871]
[1760892287228,0.00457561,109090.0,109080.0,1.51889401]
[1760892287633,0.00457561,109090.0,109080.0,1.39869401]
[1760892287861,0.00457561,109090.0,109080.0,0.62445872]
[1760892288134,0.00457561,109090.0,109080.0,0.74461872]
[1760892288564,0.00457561,109090.0,109080.0,0.74465872]
[1760892288763,0.00457561,109090.0,109080.0,0.62445872]
[1760892288965,0.00457561,109090.0,109080.0,0.75465871]
[1760892289173,0.00457561,109090.0,109080.0,1.51889401]
[1760892289370,0.00457561,109090.0,109080.0,1.50889402]
[1760892289831,0.00457561,109090.0,109080.0,0.63445871]
[1760892290009,0.00457561,109090.0,109080.0,0.74461872]
[1760892290182,0.00457561,109090.0,109080.0,0.74457872]
[1760892290362,0.00457561,109090.0,109080.0,1.50881402]
[1760892290773,0.00457561,109090.0,109080.0,1.38869402]
[1760892290972,0.00457561,109090.0,109080.0,0.74353872]
[1760892291177,0.00457561,109090.0,109080.0,1.51777401]
[1760892291403,0.00457561,109090.0,109080.0,1.51877401]
[1760892291603,0.00457561,109090.0,109080.0,1.51307783]
[1760892291770,0.00457561,109090.0,109080.0,1.51303783]
[1760892292136,0.00457561,109090.0,109080.0,1.39199783]
[1760892292337,0.00617203,109090.0,109080.0,0.73880254]
[1760892292570,0.00617203,109090.0,109080.0,0.73876254]
[1760892292773,0.00617203,109090.0,109080.0,1.50199784]
[1760892293127,0.9569993,109140.0,109080.0,1.38199784]
[1760892293326,0.99003461,109140.0,109100.0,0.19247407]
[1760892293692,0.99003461,109140.0,109100.0,0.28688495]
[1760892293855,0.99003461,109140.0,109110.0,0.18330013]
[1760892294098,0.22579931,109140.0,109110.0,0.18330013]
[1760892294280,0.28697186,109140.0,109110.0,0.20163025]
[1760892294858,0.28797186,109140.0,109110.0,0.20163025]
[1760892295063,0.09555831,109140.0,109110.0,0.21079531]
[1760892295261,0.09555831,109140.0,109110.0,0.19246519]
[1760892295262,0.12106743,109140.0,109110.0,0.19246519]
[1760892295423,0.12006743,109140.0,109110.0,0.19246519]
[1760892295790,0.12106743,109140.0,109110.0,0.19246519]
[1760892295993,0.00114743,109140.0,109110.0,0.19246519]
[1760892296401,0.00114743,109140.0,109110.0,0.31230519]
[1760892296806,0.18439834,109140.0,109110.0,0.31230519]
[1760892297006,0.94863364,109140.0,109110.0,0.31230519]
[1760892297413,0.00114743,109140.0,109120.0,0.5232812]
[1760892297613,0.00055941,109140.0,109120.0,0.34]
[1760892297840,0.17788716,109140.0,109120.0,0.34]
[1760892297993,1.04191384,109130.0,109100.0,0.52331776]
[1760892298176,0.85864618,109130.0,109110.0,0.01833012]
[1760892298382,0.10357426,109130.0,109110.0,0.01833012]
[1760892298591,0.28684306,109130.0,109110.0,0.01833012]
[1760892298966,0.28684306,109130.0,109070.0,0.80881968]
[1760892298967,0.0091659,109100.0,109070.0,0.80881968]
[1760892299162,0.30309606,109090.0,109070.0,0.00108314]
[1760892299428,0.09441088,109080.0,109070.0,0.00108314]
[1760892299671,0.11976,109090.0,109070.0,0.00108314]
[1760892299873,0.21417088,109090.0,109070.0,0.00108314]
[1760892300220,0.21417088,109090.0,109070.0,0.00157476]
[1760892300426,0.00034863,109100.0,109070.0,0.28851621]
[1760892300693,0.00034863,109100.0,109090.0,0.18333486]
[1760892300888,0.00034863,109100.0,109090.0,0.20166834]
[1760892301092,0.00034863,109100.0,109070.0,0.19410533]
[1760892301093,0.76177134,109100.0,109070.0,0.19410533]
[1760892301305,0.76177134,109100.0,109070.0,0.28851621]
[1760892301510,0.12044,109090.0,109070.0,0.00157476]
[1760892302110,0.12044,109090.0,109070.0,0.1849426]
[1760892302883,0.21485088,109090.0,109070.0,0.00157476]
[1760892303093,0.39818827,109090.0,109070.0,0.00157476]
[1760892303293,0.1204,109080.0,109070.0,0.21244543]
[1760892303527,0.1204,109080.0,109070.0,0.19410859]
[1760892304106,0.00034863,109100.0,109090.0,0.18333486]
[1760892304308,0.12070863,109100.0,109090.0,0.18333486]
[1760892305118,0.00890301,109100.0,109090.0,0.20166834]
[1760892305318,0.00890301,109100.0,109090.0,0.3322615]
[1760892305575,0.00034863,109100.0,109090.0,0.31392802]
[1760892307324,0.00892107,109100.0,109090.0,0.31392802]
[1760892308311,0.00892107,109100.0,109090.0,0.55203291]
[1760892309664,0.00892107,109100.0,109090.0,0.67235291]
[1760892309868,0.00892107,109100.0,109090.0,0.42143975]
[1760892310086,0.00892107,109100.0,109090.0,0.45762203]
[1760892311723,0.00892107,109100.0,109090.0,0.44762203]
[1760892312333,0.00892107,109100.0,109090.0,0.41143975]
[1760892312538,0.00892107,109100.0,109090.0,0.42143975]
[1760892313835,0.00892107,109100.0,109090.0,0.42043975]
[1760892314161,0.00892107,109100.0,109090.0,0.42143975]
[1760892316286,0.00892107,109100.0,109090.0,0.23810489]
[1760892316744,0.10333195,109100.0,109090.0,0.23810489]
[1760892317096,0.10333195,109100.0,109090.0,0.42143975]
[1760892317310,0.00892107,109100.0,109090.0,0.42143975]
[1760892317509,0.12904107,109100.0,109090.0,0.42143975]
[1760892317898,0.12904107,109100.0,109090.0,0.42043975]
[1760892320022,0.00892107,109100.0,109090.0,0.42043975]
[1760892320246,0.12900107,109100.0,109090.0,0.42043975]
[1760892321462,0.22341195,109100.0,109090.0,0.23710489]
[1760892322303,0.24055645,109100.0,109090.0,0.23710489]
[1760892322503,0.24215341,109100.0,109090.0,0.23710489]
[1760892325664,0.42547146,109100.0,109090.0,0.23710489]
[1760892325871,0.4238745,109100.0,109090.0,0.23710489]
[1760892326095,0.7638745,109100.0,109090.0,0.23710489]
[1760892326496,1.25601323,109100.0,109090.0,0.23710489]
[1760892326643,0.7638745,109100.0,109090.0,0.23710489]
[1760892326839,1.25601323,109100.0,109090.0,0.23710489]
[1760892327831,1.25601323,109100.0,109090.0,0.23113737]
[1760892328684,4.35041965,109100.0,109090.0,0.23113737]
[1760892328881,4.25601323,109100.0,109090.0,0.22218531]
[1760892329767,4.25701323,109100.0,109090.0,0.22218531]
[1760892330370,4.26701322,109100.0,109090.0,0.19927368]
[1760892330575,4.36141964,109100.0,109090.0,0.19927368]
[1760892330791,0.18335166,109080.0,109070.0,0.00157476]
[1760892330965,3.91537821,109080.0,109070.0,0.00157476]
[1760892331931,4.74751694,109080.0,109070.0,0.00157476]
[1760892332689,4.75751693,109080.0,109070.0,0.00157476]
[1760892332900,4.85192335,109080.0,109070.0,0.00157476]
[1760892333544,4.85292335,109080.0,109070.0,0.00157476]
[1760892333749,4.86292334,109080.0,109070.0,0.00157476]
[1760892334287,4.85292335,109080.0,109070.0,0.00157476]
[1760892334441,4.86292334,109080.0,109070.0,0.00157476]
[1760892334650,4.36070462,109080.0,109070.0,0.00157476]
[1760892335454,4.85284335,109080.0,109070.0,0.00157476]
[1760892336950,4.83784335,109080.0,109070.0,0.00157476]
[1760892337132,4.84784334,109080.0,109070.0,0.00157476]
[1760892337801,4.74343693,109080.0,109070.0,0.00157476]
[1760892338262,4.75343692,109080.0,109070.0,0.00157476]
[1760892339040,4.74343693,109080.0,109070.0,0.00157476]
[1760892339208,4.74343693,109080.0,108960.0,0.67599192]
[1760892339209,0.18348768,109000.0,108980.0,0.0004]
[1760892339440,0.46004,108990.0,108980.0,0.00054743]
[1760892339641,0.64354307,108990.0,108980.0,0.00054743]
[1760892339833,0.46004,108990.0,108980.0,0.00054743]
[1760892340102,0.63182921,109030.0,108990.0,0.19267822]
[1760892340304,0.73794411,109020.0,109000.0,0.1834847]
[1760892340506,0.6756086,109010.0,108980.0,0.28761408]
[1760892340708,0.6756086,109010.0,108980.0,0.00054743]
[1760892340709,0.1202,109000.0,108980.0,0.00054743]
[1760892340996,0.1202,109000.0,108980.0,0.20241694]
[1760892341398,0.49213873,108990.0,108980.0,0.00054743]
[1760892341698,0.89025268,109000.0,108980.0,0.00054743]
[1760892342253,0.90731095,109000.0,108980.0,0.18406683]
[1760892342643,5e-05,108990.0,108980.0,0.00054743]
[1760892343213,5e-05,108990.0,108980.0,0.18406734]
[1760892343966,5e-05,108990.0,108980.0,0.80679923]
[1760892344083,0.12033,108990.0,108980.0,0.80679923]
[1760892344929,0.12028,109000.0,108990.0,0.18348894]
[1760892346329,0.12028,109000.0,108980.0,0.22942561]
[1760892346567,0.12028,109000.0,108980.0,0.19324333]
[1760892346783,0.12028,109000.0,108990.0,0.18350307]
[1760892347472,0.12028,109000.0,108980.0,0.19324333]
[1760892347690,0.12028,109000.0,108990.0,0.18350307]
[1760892348545,0.12028,109000.0,108980.0,0.19324333]
[1760892348968,0.12028,109000.0,108990.0,0.18350307]
[1760892349389,0.30376781,109000.0,108980.0,0.19324333]
[1760892349624,0.89031742,109000.0,108980.0,0.19324333]
[1760892349841,0.72387717,109000.0,108980.0,0.19324259]
[1760892350050,0.50918629,109000.0,108980.0,0.19324259]
[1760892350264,0.12012,108990.0,108980.0,0.19324259]
[1760892350488,1.1357618,108990.0,108980.0,0.00054743]
[1760892350715,0.96931157,108990.0,108980.0,0.00368905]
[1760892350932,0.65395497,109020.0,108990.0,0.18349821]
[1760892351168,0.12016,109010.0,108990.0,0.18349821]
[1760892351401,0.01705148,109010.0,109000.0,0.18348623]
[1760892351585,0.01705148,109010.0,109000.0,0.18592926]
[1760892351709,0.61233873,109010.0,109000.0,0.00244303]
[1760892351909,0.13725148,109010.0,109000.0,0.00244303]
[1760892352302,0.13730148,109010.0,109000.0,0.18592926]
[1760892354409,0.13730148,109010.0,109000.0,0.00244303]
[1760892355022,0.81290961,109010.0,109000.0,0.00244303]
[1760892355864,0.32077088,109010.0,109000.0,0.00244303]
[1760892356046,0.81290961,109010.0,109000.0,0.00244303]
[1760892356359,0.32077088,109010.0,109000.0,0.00244303]
[1760892357809,0.13730148,109010.0,109000.0,0.00244303]
[1760892358225,0.14586173,109010.0,109000.0,0.00244303]
[1760892358426,0.14745993,109010.0,109000.0,0.00244303]
[1760892358651,0.14586173,109010.0,109000.0,0.00244303]
[1760892359418,0.32933113,109010.0,109000.0,0.00244303]
[1760892359551,0.42374201,109010.0,109000.0,0.00244303]
[1760892359762,0.30354201,109010.0,109000.0,0.00244303]
[1760892359991,4.13568074,109010.0,109000.0,0.00244303]